[Event "Titled Tuesday Blitz October 11 Late 2022"]
[White "Stanisz, Patryk"]
[Black "Potula, Kapish"]
[WhiteFideId "1123106"]
[BlackFideId "30903270"]
[WhiteElo "2069"]
[BlackElo "1991"]
[Result "1-0"]
[Round "11"]
[TimeControl "180+1"]
[Date "2022.10.12"]
[WhiteClock "0:01:13"]
[BlackClock "0:00:04"]

1. d4 {[%clk 0:03:00]}  Nf6 {[%clk 0:02:58]} 2. c4 {[%clk 0:03:01]}  e6 {[%clk 0:02:57]} 3. Nc3 {[%clk 0:03:01]}  d5 {[%clk 0:02:58]} 4. e3 {[%clk 0:03:02]}  Be7 {[%clk 0:02:57]} 5. Nf3 {[%clk 0:03:01]}  c6 {[%clk 0:02:57]} 6. Qc2 {[%clk 0:03:00]}  O-O {[%clk 0:02:56]} 7. Bd2 {[%clk 0:02:59]}  Nbd7 {[%clk 0:02:55]} 8. a3 {[%clk 0:02:56]}  a6 {[%clk 0:02:52]} 9. c5 {[%clk 0:02:53]}  Qc7 {[%clk 0:02:47]} 10. b4 {[%clk 0:02:37]}  e5 {[%clk 0:02:40]} 11. dxe5 {[%clk 0:02:32]}  Nxe5 {[%clk 0:02:41]} 12. Nxe5 {[%clk 0:02:32]}  Qxe5 {[%clk 0:02:42]} 13. Be2 {[%clk 0:02:32]}  Bf5 {[%clk 0:02:28]} 14. Bd3 {[%clk 0:02:29]}  Bxd3 {[%clk 0:01:52]} 15. Qxd3 {[%clk 0:02:29]}  Rad8 {[%clk 0:01:53]} 16. O-O {[%clk 0:02:19]}  Ng4 {[%clk 0:01:34]} 17. f4 {[%clk 0:01:55]}  Qh5 {[%clk 0:01:33]} 18. h3 {[%clk 0:01:56]}  Nh6 {[%clk 0:01:15]} 19. Ne2 {[%clk 0:01:52]}  Bf6 {[%clk 0:00:59]} 20. Rab1 {[%clk 0:01:48]}  d4 {[%clk 0:00:39]} 21. e4 {[%clk 0:01:46]}  Rfe8 {[%clk 0:00:22]} 22. e5 {[%clk 0:01:46]}  Bh4 {[%clk 0:00:20]} 23. Rbd1 {[%clk 0:01:38]}  Qf5 {[%clk 0:00:19]} 24. Be1 {[%clk 0:01:30]}  Bxe1 {[%clk 0:00:17]} 25. Rfxe1 {[%clk 0:01:28]}  Re7 {[%clk 0:00:08]} 26. g4 {[%clk 0:01:20]}  Qd7 {[%clk 0:00:03]} 27. Qe4 {[%clk 0:01:18]}  Nxg4 {[%clk 0:00:03]} 28. hxg4 {[%clk 0:01:13]}  Qxg4+ {[%clk 0:00:04]} 29. Qg2 {[%clk 0:01:13]} 1-0


[Site "https://www.chess.com"]

[Event "Titled Tuesday Blitz October 11 Late 2022"]
[White "Tan, Ralph"]
[Black "Gubajdullin, Alexei"]
[WhiteFideId "30966590"]
[BlackFideId "4141202"]
[WhiteElo "2059"]
[BlackElo "2200"]
[Result "0-1"]
[Round "11"]
[TimeControl "180+1"]
[Date "2022.10.11"]
[WhiteClock "0:00:30"]
[BlackClock "0:00:57"]

1. Nf3 {[%clk 0:03:00]}  Nf6 {[%clk 0:02:59]} 2. g3 {[%clk 0:03:00]}  g6 {[%clk 0:02:59]} 3. Bg2 {[%clk 0:03:00]}  Bg7 {[%clk 0:02:59]} 4. O-O {[%clk 0:03:00]}  O-O {[%clk 0:03:00]} 5. d4 {[%clk 0:03:01]}  d6 {[%clk 0:03:01]} 6. c4 {[%clk 0:03:01]}  Nc6 {[%clk 0:03:01]} 7. Nc3 {[%clk 0:03:01]}  a6 {[%clk 0:03:01]} 8. b3 {[%clk 0:03:01]}  Rb8 {[%clk 0:03:01]} 9. Bb2 {[%clk 0:03:00]}  b5 {[%clk 0:03:01]} 10. Qd3 {[%clk 0:02:39]}  bxc4 {[%clk 0:02:53]} 11. Qxc4 {[%clk 0:02:38]}  Nb4 {[%clk 0:02:53]} 12. e4 {[%clk 0:02:26]}  a5 {[%clk 0:02:49]} 13. Qe2 {[%clk 0:02:02]}  Ba6 {[%clk 0:02:47]} 14. Qd2 {[%clk 0:02:02]}  Bxf1 {[%clk 0:02:46]} 15. Rxf1 {[%clk 0:02:00]}  c5 {[%clk 0:02:39]} 16. Rd1 {[%clk 0:01:57]}  Nd7 {[%clk 0:02:33]} 17. Qe2 {[%clk 0:01:51]}  cxd4 {[%clk 0:02:25]} 18. Nxd4 {[%clk 0:01:52]}  Qb6 {[%clk 0:02:25]} 19. Na4 {[%clk 0:01:47]}  Qa6 {[%clk 0:02:20]} 20. Qxa6 {[%clk 0:01:43]}  Nxa6 {[%clk 0:02:19]} 21. Nc6 {[%clk 0:01:43]}  Rbe8 {[%clk 0:02:11]} 22. Bxg7 {[%clk 0:01:35]}  Kxg7 {[%clk 0:02:11]} 23. Nxa5 {[%clk 0:01:35]}  Rc8 {[%clk 0:02:06]} 24. Nc4 {[%clk 0:01:32]}  Nac5 {[%clk 0:02:00]} 25. Nc3 {[%clk 0:01:29]}  Rb8 {[%clk 0:01:47]} 26. Nd5 {[%clk 0:01:25]}  Rfe8 {[%clk 0:01:43]} 27. f4 {[%clk 0:01:17]}  Kf8 {[%clk 0:01:43]} 28. e5 {[%clk 0:01:11]}  dxe5 {[%clk 0:01:41]} 29. fxe5 {[%clk 0:01:12]}  Rec8 {[%clk 0:01:38]} 30. Bh3 {[%clk 0:01:10]}  e6 {[%clk 0:01:36]} 31. Nde3 {[%clk 0:00:55]}  Ke7 {[%clk 0:01:34]} 32. Bg2 {[%clk 0:00:55]}  Nb6 {[%clk 0:01:28]} 33. Nd6 {[%clk 0:00:51]}  Rd8 {[%clk 0:01:28]} 34. Rf1 {[%clk 0:00:50]}  f5 {[%clk 0:01:26]} 35. g4 {[%clk 0:00:47]}  Nd3 {[%clk 0:01:23]} 36. Nec4 {[%clk 0:00:31]}  Nxc4 {[%clk 0:01:22]} 37. Nxc4 {[%clk 0:00:31]}  Rb5 {[%clk 0:01:21]} 38. gxf5 {[%clk 0:00:28]}  gxf5 {[%clk 0:01:14]} 39. Bc6 {[%clk 0:00:21]}  Rc5 {[%clk 0:01:13]} 40. Bg2 {[%clk 0:00:19]}  Nxe5 {[%clk 0:01:13]} 41. Rc1 {[%clk 0:00:16]}  Nxc4 {[%clk 0:01:12]} 42. bxc4 {[%clk 0:00:17]}  Rd2 {[%clk 0:01:11]} 43. a4 {[%clk 0:00:17]}  Ra2 {[%clk 0:01:11]} 44. Bf1 {[%clk 0:00:16]}  Rxa4 {[%clk 0:01:10]} 45. Kf2 {[%clk 0:00:17]}  Ra2+ {[%clk 0:01:09]} 46. Kg3 {[%clk 0:00:16]}  e5 {[%clk 0:01:08]} 47. h4 {[%clk 0:00:17]}  Ra3+ {[%clk 0:01:04]} 48. Kf2 {[%clk 0:00:16]}  e4 {[%clk 0:01:04]} 49. Be2 {[%clk 0:00:16]}  f4 {[%clk 0:01:04]} 50. Rg1 {[%clk 0:00:16]}  Ra2 {[%clk 0:01:03]} 51. Ke1 {[%clk 0:00:14]}  Ra1+ {[%clk 0:01:03]} 52. Bd1 {[%clk 0:00:15]}  Rxc4 {[%clk 0:01:03]} 53. Rg7+ {[%clk 0:00:15]}  Kf6 {[%clk 0:01:03]} 54. Rxh7 {[%clk 0:00:15]}  Rcc1 {[%clk 0:01:01]} 55. Rd7 {[%clk 0:00:16]}  Rxd1+ {[%clk 0:01:00]} 56. Rxd1 {[%clk 0:00:16]}  Rxd1+ {[%clk 0:00:59]} 57. Kxd1 {[%clk 0:00:17]}  Kg6 {[%clk 0:00:59]} 58. Ke2 {[%clk 0:00:18]}  Kh5 {[%clk 0:00:59]} 59. Kf2 {[%clk 0:00:19]}  Kxh4 {[%clk 0:00:59]} 60. Kg2 {[%clk 0:00:20]}  Kg4 {[%clk 0:01:00]} 61. Kh2 {[%clk 0:00:21]}  e3 {[%clk 0:01:00]} 62. Kg2 {[%clk 0:00:21]}  f3+ {[%clk 0:01:00]} 63. Kf1 {[%clk 0:00:21]}  Kg3 {[%clk 0:01:00]} 64. Ke1 {[%clk 0:00:22]}  Kg2 {[%clk 0:01:00]} 65. Kd1 {[%clk 0:00:22]}  Kf2 {[%clk 0:01:00]} 66. Kc2 {[%clk 0:00:22]}  e2 {[%clk 0:01:00]} 67. Kd3 {[%clk 0:00:23]}  e1=Q {[%clk 0:01:00]} 68. Kd4 {[%clk 0:00:23]}  Qe3+ {[%clk 0:01:00]} 69. Kd5 {[%clk 0:00:24]}  Ke2 {[%clk 0:00:59]} 70. Kc4 {[%clk 0:00:25]}  f2 {[%clk 0:01:00]} 71. Kd5 {[%clk 0:00:25]}  f1=Q {[%clk 0:01:00]} 72. Kc4 {[%clk 0:00:26]}  Qff4+ {[%clk 0:00:59]} 73. Kd5 {[%clk 0:00:27]}  Qee5+ {[%clk 0:00:59]} 74. Kc6 {[%clk 0:00:28]}  Qff6+ {[%clk 0:00:59]} 75. Kd7 {[%clk 0:00:28]}  Qed6+ {[%clk 0:00:58]} 76. Kc8 {[%clk 0:00:29]}  Qfd8+ {[%clk 0:00:57]} 77. Kb7 {[%clk 0:00:30]}  Q8b8# {[%clk 0:00:57]} 0-1


[Site "https://www.chess.com"]

[Event "Titled Tuesday Blitz October 11 Late 2022"]
[White "Tayar, Jonathan"]
[Black "Erdogdu, Mert"]
[WhiteFideId "2606534"]
[BlackFideId "6301495"]
[WhiteElo "2406"]
[BlackElo "2413"]
[Result "0-1"]
[Round "11"]
[TimeControl "180+1"]
[Date "2022.10.11"]
[WhiteClock "0:02:50"]
[BlackClock "0:02:29"]

1. e4 {[%clk 0:03:00]}  c5 {[%clk 0:02:59]} 2. Nf3 {[%clk 0:03:00]}  d6 {[%clk 0:02:59]} 3. d4 {[%clk 0:03:00]}  cxd4 {[%clk 0:03:00]} 4. Nxd4 {[%clk 0:03:01]}  Nf6 {[%clk 0:03:00]} 5. Nc3 {[%clk 0:03:01]}  a6 {[%clk 0:02:59]} 6. Bg5 {[%clk 0:03:02]}  e6 {[%clk 0:02:59]} 7. f4 {[%clk 0:03:02]}  Qb6 {[%clk 0:02:59]} 8. Qd2 {[%clk 0:03:02]}  Nc6 {[%clk 0:02:59]} 9. Bxf6 {[%clk 0:03:01]}  gxf6 {[%clk 0:02:59]} 10. Nb3 {[%clk 0:03:02]}  Bd7 {[%clk 0:02:59]} 11. Be2 {[%clk 0:03:01]}  h5 {[%clk 0:02:59]} 12. O-O-O {[%clk 0:03:01]}  O-O-O {[%clk 0:02:59]} 13. Rhf1 {[%clk 0:03:01]}  Kb8 {[%clk 0:02:57]} 14. Rf3 {[%clk 0:03:01]}  Be7 {[%clk 0:02:56]} 15. Rh3 {[%clk 0:03:00]}  h4 {[%clk 0:02:55]} 16. Kb1 {[%clk 0:02:59]}  Rdg8 {[%clk 0:02:55]} 17. Bf1 {[%clk 0:02:59]}  Rc8 {[%clk 0:02:44]} 18. a3 {[%clk 0:02:53]}  Na5 {[%clk 0:02:41]} 19. Nd5 {[%clk 0:02:51]}  exd5 {[%clk 0:02:33]} 20. Nxa5 {[%clk 0:02:50]}  Bxh3 {[%clk 0:02:29]} 0-1


[Site "https://www.chess.com"]

[Event "Titled Tuesday Blitz October 11 Late 2022"]
[White "Timmermans, Mark"]
[Black "Thomforde-Toates, Noah"]
[WhiteFideId "1026399"]
[BlackFideId "30951992"]
[WhiteElo "2460"]
[BlackElo "2696"]
[Result "1-0"]
[Round "11"]
[TimeControl "180+1"]
[Date "2022.10.11"]
[WhiteClock "0:00:17"]
[BlackClock "0:00:03"]

1. Nf3 {[%clk 0:03:00]}  Nf6 {[%clk 0:02:59]} 2. c4 {[%clk 0:03:00]}  g6 {[%clk 0:02:58]} 3. b3 {[%clk 0:02:59]}  Bg7 {[%clk 0:02:57]} 4. Bb2 {[%clk 0:03:00]}  O-O {[%clk 0:02:57]} 5. e3 {[%clk 0:03:00]}  b6 {[%clk 0:02:57]} 6. Be2 {[%clk 0:03:00]}  Bb7 {[%clk 0:02:57]} 7. O-O {[%clk 0:03:00]}  d6 {[%clk 0:02:57]} 8. d4 {[%clk 0:03:01]}  e6 {[%clk 0:02:58]} 9. Nc3 {[%clk 0:03:01]}  Nbd7 {[%clk 0:02:57]} 10. Nd2 {[%clk 0:03:01]}  e5 {[%clk 0:02:56]} 11. dxe5 {[%clk 0:02:50]}  Nxe5 {[%clk 0:02:55]} 12. Nf3 {[%clk 0:02:51]}  Nxf3+ {[%clk 0:02:52]} 13. Bxf3 {[%clk 0:02:52]}  Qc8 {[%clk 0:02:50]} 14. Bxb7 {[%clk 0:02:46]}  Qxb7 {[%clk 0:02:48]} 15. Ne2 {[%clk 0:02:47]}  Rfe8 {[%clk 0:02:47]} 16. Qc2 {[%clk 0:02:42]}  Qe4 {[%clk 0:02:38]} 17. Rac1 {[%clk 0:02:41]}  Qxc2 {[%clk 0:02:37]} 18. Rxc2 {[%clk 0:02:42]}  Rad8 {[%clk 0:02:37]} 19. Rd1 {[%clk 0:02:41]}  Ne4 {[%clk 0:02:34]} 20. Bxg7 {[%clk 0:02:40]}  Kxg7 {[%clk 0:02:35]} 21. f3 {[%clk 0:02:40]}  Nc5 {[%clk 0:02:34]} 22. e4 {[%clk 0:02:41]}  a5 {[%clk 0:02:34]} 23. Nd4 {[%clk 0:02:37]}  h5 {[%clk 0:02:19]} 24. a3 {[%clk 0:02:36]}  Ra8 {[%clk 0:02:18]} 25. Nb5 {[%clk 0:02:20]}  Re7 {[%clk 0:02:17]} 26. Rb1 {[%clk 0:02:18]}  Kf6 {[%clk 0:02:11]} 27. Kf2 {[%clk 0:02:17]}  Ke6 {[%clk 0:02:08]} 28. Nd4+ {[%clk 0:02:12]}  Kd7 {[%clk 0:02:08]} 29. Rd2 {[%clk 0:02:08]}  Re5 {[%clk 0:02:01]} 30. b4 {[%clk 0:02:01]}  axb4 {[%clk 0:02:01]} 31. axb4 {[%clk 0:02:02]}  Ne6 {[%clk 0:02:00]} 32. Nxe6 {[%clk 0:01:54]}  Kxe6 {[%clk 0:02:01]} 33. Ke3 {[%clk 0:01:51]}  f5 {[%clk 0:02:00]} 34. Rb3 {[%clk 0:01:47]}  fxe4 {[%clk 0:01:59]} 35. f4 {[%clk 0:01:46]}  Rf5 {[%clk 0:01:56]} 36. Rd4 {[%clk 0:01:44]}  Ra1 {[%clk 0:01:52]} 37. Rxe4+ {[%clk 0:01:43]}  Kd7 {[%clk 0:01:52]} 38. Rb2 {[%clk 0:01:39]}  g5 {[%clk 0:01:52]} 39. fxg5 {[%clk 0:01:37]}  Rxg5 {[%clk 0:01:52]} 40. Re2 {[%clk 0:01:31]}  Rb1 {[%clk 0:01:49]} 41. b5 {[%clk 0:01:30]}  Rc1 {[%clk 0:01:48]} 42. Kd2 {[%clk 0:01:29]}  Rg1 {[%clk 0:01:47]} 43. Re7+ {[%clk 0:01:26]}  Kc8 {[%clk 0:01:46]} 44. g3 {[%clk 0:01:26]}  Rc5 {[%clk 0:01:45]} 45. Rh7 {[%clk 0:01:03]}  Kd8 {[%clk 0:00:40]} 46. Ree7 {[%clk 0:01:01]}  Rf1 {[%clk 0:00:34]} 47. Rd7+ {[%clk 0:01:00]}  Kc8 {[%clk 0:00:33]} 48. Rdg7 {[%clk 0:00:58]}  Rf8 {[%clk 0:00:32]} 49. Kd3 {[%clk 0:00:58]}  d5 {[%clk 0:00:32]} 50. cxd5 {[%clk 0:00:57]}  Rxd5+ {[%clk 0:00:32]} 51. Ke4 {[%clk 0:00:48]}  Rc5 {[%clk 0:00:32]} 52. Re7 {[%clk 0:00:44]}  Rf1 {[%clk 0:00:28]} 53. Kd3 {[%clk 0:00:35]}  Rd1+ {[%clk 0:00:25]} 54. Ke2 {[%clk 0:00:34]}  Rb1 {[%clk 0:00:25]} 55. Re8+ {[%clk 0:00:31]}  Kb7 {[%clk 0:00:24]} 56. Rhh8 {[%clk 0:00:32]}  Rbxb5 {[%clk 0:00:21]} 57. Rb8+ {[%clk 0:00:31]}  Kc6 {[%clk 0:00:20]} 58. Rh6+ {[%clk 0:00:29]}  Kd5 {[%clk 0:00:20]} 59. Rxh5+ {[%clk 0:00:29]}  Kc4 {[%clk 0:00:20]} 60. Rxc5+ {[%clk 0:00:28]}  Rxc5 {[%clk 0:00:21]} 61. h4 {[%clk 0:00:28]}  b5 {[%clk 0:00:21]} 62. g4 {[%clk 0:00:27]}  b4 {[%clk 0:00:22]} 63. h5 {[%clk 0:00:28]}  b3 {[%clk 0:00:21]} 64. h6 {[%clk 0:00:27]}  Re5+ {[%clk 0:00:16]} 65. Kf3 {[%clk 0:00:24]}  Re7 {[%clk 0:00:15]} 66. g5 {[%clk 0:00:23]}  Kc3 {[%clk 0:00:15]} 67. g6 {[%clk 0:00:23]}  b2 {[%clk 0:00:07]} 68. g7 {[%clk 0:00:20]}  Re8 {[%clk 0:00:05]} 69. Rxb2 {[%clk 0:00:16]}  Kxb2 {[%clk 0:00:05]} 70. h7 {[%clk 0:00:17]}  c5 {[%clk 0:00:04]} 71. h8=Q {[%clk 0:00:17]}  Re6 {[%clk 0:00:02]} 72. g8=Q+ {[%clk 0:00:17]}  Kb1 {[%clk 0:00:03]} 73. Qxe6 {[%clk 0:00:17]}  c4 {[%clk 0:00:03]} 74. Qe2 {[%clk 0:00:16]}  c3 {[%clk 0:00:03]} 75. Qh1# {[%clk 0:00:17]} 1-0


[Site "https://www.chess.com"]

[Event "Titled Tuesday Blitz October 11 Late 2022"]
[White "Zhigalko, Sergei"]
[Black "Kamsky, Gata"]
[WhiteFideId "13502956"]
[BlackFideId "2000024"]
[WhiteElo "2662"]
[BlackElo "2666"]
[Result "0-1"]
[Round "11"]
[TimeControl "180+1"]
[Date "2022.10.11"]
[WhiteClock "0:00:07"]
[BlackClock "0:00:12"]

1. e4 {[%clk 0:03:00]}  c5 {[%clk 0:02:57]} 2. Nf3 {[%clk 0:03:01]}  e6 {[%clk 0:02:56]} 3. c3 {[%clk 0:03:01]}  d5 {[%clk 0:02:52]} 4. e5 {[%clk 0:02:58]}  d4 {[%clk 0:02:52]} 5. Bd3 {[%clk 0:02:58]}  Bd7 {[%clk 0:02:52]} 6. O-O {[%clk 0:02:57]}  Ne7 {[%clk 0:02:22]} 7. Re1 {[%clk 0:02:55]}  Bc6 {[%clk 0:02:20]} 8. Na3 {[%clk 0:02:44]}  Ng6 {[%clk 0:02:11]} 9. Be4 {[%clk 0:02:22]}  Bxe4 {[%clk 0:01:59]} 10. Rxe4 {[%clk 0:02:23]}  Nc6 {[%clk 0:01:57]} 11. d3 {[%clk 0:02:21]}  dxc3 {[%clk 0:01:41]} 12. bxc3 {[%clk 0:02:21]}  Be7 {[%clk 0:01:41]} 13. Rb1 {[%clk 0:02:18]}  Qd7 {[%clk 0:01:39]} 14. h4 {[%clk 0:02:03]}  h5 {[%clk 0:01:30]} 15. Nc4 {[%clk 0:01:39]}  Rd8 {[%clk 0:01:21]} 16. Bg5 {[%clk 0:01:38]}  f6 {[%clk 0:01:20]} 17. exf6 {[%clk 0:00:46]}  gxf6 {[%clk 0:01:17]} 18. Bc1 {[%clk 0:00:20]}  b6 {[%clk 0:01:10]} 19. d4 {[%clk 0:00:18]}  Kf7 {[%clk 0:01:03]} 20. Qe2 {[%clk 0:00:17]}  Qd5 {[%clk 0:00:58]} 21. g3 {[%clk 0:00:07]}  e5 {[%clk 0:00:37]} 22. dxe5 {[%clk 0:00:06]}  f5 {[%clk 0:00:37]} 23. e6+ {[%clk 0:00:05]}  Kg7 {[%clk 0:00:36]} 24. Re3 {[%clk 0:00:05]}  Qd1+ {[%clk 0:00:35]} 25. Kg2 {[%clk 0:00:05]}  Qxe2 {[%clk 0:00:34]} 26. Rxe2 {[%clk 0:00:06]}  Bf6 {[%clk 0:00:34]} 27. Bg5 {[%clk 0:00:06]}  Rd3 {[%clk 0:00:33]} 28. Ne3 {[%clk 0:00:06]}  Nge7 {[%clk 0:00:32]} 29. c4 {[%clk 0:00:06]}  Rhd8 {[%clk 0:00:29]} 30. Rbe1 {[%clk 0:00:06]}  Kg6 {[%clk 0:00:28]} 31. Nd5 {[%clk 0:00:05]}  Nxd5 {[%clk 0:00:28]} 32. cxd5 {[%clk 0:00:06]}  Ne7 {[%clk 0:00:18]} 33. Bxf6 {[%clk 0:00:05]}  Kxf6 {[%clk 0:00:18]} 34. Ng5 {[%clk 0:00:03]}  R3xd5 {[%clk 0:00:16]} 35. Nh3 {[%clk 0:00:04]}  Rd1 {[%clk 0:00:13]} 36. Nf4 {[%clk 0:00:03]}  Rxe1 {[%clk 0:00:13]} 37. Nxh5+ {[%clk 0:00:04]}  Kg6 {[%clk 0:00:12]} 38. Nf4+ {[%clk 0:00:05]}  Kf6 {[%clk 0:00:12]} 39. Rxe1 {[%clk 0:00:06]}  c4 {[%clk 0:00:12]} 40. Nh5+ {[%clk 0:00:03]}  Kg6 {[%clk 0:00:12]} 41. Nf4+ {[%clk 0:00:04]}  Kf6 {[%clk 0:00:13]} 42. a4 {[%clk 0:00:04]}  a6 {[%clk 0:00:12]} 43. Nh5+ {[%clk 0:00:04]}  Kg6 {[%clk 0:00:12]} 44. Nf4+ {[%clk 0:00:05]}  Kf6 {[%clk 0:00:13]} 45. Rb1 {[%clk 0:00:05]}  Rb8 {[%clk 0:00:13]} 46. Kf3 {[%clk 0:00:04]}  b5 {[%clk 0:00:12]} 47. axb5 {[%clk 0:00:05]}  axb5 {[%clk 0:00:12]} 48. Ke3 {[%clk 0:00:05]}  Ke5 {[%clk 0:00:13]} 49. h5 {[%clk 0:00:02]}  b4 {[%clk 0:00:13]} 50. h6 {[%clk 0:00:02]}  b3 {[%clk 0:00:13]} 51. Ne2 {[%clk 0:00:01]}  Nd5+ {[%clk 0:00:13]} 52. Kd2 {[%clk 0:00:01]}  Kxe6 {[%clk 0:00:13]} 53. h7 {[%clk 0:00:01]}  Rh8 {[%clk 0:00:12]} 54. Nd4+ {[%clk 0:00:01]}  Ke5 {[%clk 0:00:11]} 55. Nxb3 {[%clk 0:00:01]}  cxb3 {[%clk 0:00:11]} 56. Rxb3 {[%clk 0:00:01]}  Rxh7 {[%clk 0:00:11]} 57. Ke2 {[%clk 0:00:02]}  Rc7 {[%clk 0:00:11]} 58. Rb5 {[%clk 0:00:02]}  Kd4 {[%clk 0:00:10]} 59. Kf3 {[%clk 0:00:02]}  Rc3+ {[%clk 0:00:10]} 60. Kg2 {[%clk 0:00:03]}  Rc2 {[%clk 0:00:10]} 61. Kf3 {[%clk 0:00:02]}  Rc3+ {[%clk 0:00:08]} 62. Kg2 {[%clk 0:00:03]}  Ke4 {[%clk 0:00:09]} 63. Ra5 {[%clk 0:00:03]}  Rc2 {[%clk 0:00:08]} 64. Ra4+ {[%clk 0:00:03]}  Ke5 {[%clk 0:00:08]} 65. Ra5 {[%clk 0:00:03]}  Ke6 {[%clk 0:00:08]} 66. Kf3 {[%clk 0:00:03]}  Nf6 {[%clk 0:00:07]} 67. Ra6+ {[%clk 0:00:03]}  Kf7 {[%clk 0:00:08]} 68. Ra5 {[%clk 0:00:03]}  Kg6 {[%clk 0:00:08]} 69. Ra6 {[%clk 0:00:02]}  Kg5 {[%clk 0:00:08]} 70. Ke3 {[%clk 0:00:02]}  Ng4+ {[%clk 0:00:08]} 71. Kd4 {[%clk 0:00:01]}  Rxf2 {[%clk 0:00:09]} 72. Ra8 {[%clk 0:00:01]}  Rf3 {[%clk 0:00:09]} 73. Rg8+ {[%clk 0:00:02]}  Kf6 {[%clk 0:00:10]} 74. Kd5 {[%clk 0:00:03]}  Rxg3 {[%clk 0:00:09]} 75. Kd4 {[%clk 0:00:03]}  Rf3 {[%clk 0:00:09]} 76. Rf8+ {[%clk 0:00:03]}  Kg5 {[%clk 0:00:10]} 77. Rg8+ {[%clk 0:00:04]}  Kf4 {[%clk 0:00:10]} 78. Ra8 {[%clk 0:00:04]}  Re3 {[%clk 0:00:10]} 79. Ra1 {[%clk 0:00:05]}  Re4+ {[%clk 0:00:10]} 80. Kd5 {[%clk 0:00:05]}  Ne3+ {[%clk 0:00:10]} 81. Kc6 {[%clk 0:00:06]}  Kf3 {[%clk 0:00:11]} 82. Kd6 {[%clk 0:00:06]}  f4 {[%clk 0:00:11]} 83. Rh1 {[%clk 0:00:07]}  Kg2 {[%clk 0:00:11]} 84. Kc5 {[%clk 0:00:08]}  f3 {[%clk 0:00:11]} 85. Rh8 {[%clk 0:00:07]}  f2 {[%clk 0:00:12]} 0-1


[Site "https://www.chess.com"]

[Event "Titled Tuesday Blitz October 11 Late 2022"]
[White "Zochowski, Kacper"]
[Black "Curtis, John"]
[WhiteFideId "1125494"]
[BlackFideId "3200256"]
[WhiteElo "2292"]
[BlackElo "2203"]
[Result "1-0"]
[Round "11"]
[TimeControl "180+1"]
[Date "2022.10.12"]
[WhiteClock "0:00:18"]
[BlackClock "0:00:02"]

1. Nf3 {[%clk 0:03:00]}  d5 {[%clk 0:02:57]} 2. c4 {[%clk 0:03:01]}  c6 {[%clk 0:02:57]} 3. g3 {[%clk 0:03:01]}  Nf6 {[%clk 0:02:56]} 4. Bg2 {[%clk 0:03:02]}  g6 {[%clk 0:02:56]} 5. O-O {[%clk 0:03:02]}  Bg7 {[%clk 0:02:56]} 6. b3 {[%clk 0:03:03]}  O-O {[%clk 0:02:56]} 7. Bb2 {[%clk 0:03:03]}  Bg4 {[%clk 0:02:52]} 8. Nc3 {[%clk 0:03:02]}  Bxf3 {[%clk 0:02:52]} 9. Bxf3 {[%clk 0:03:02]}  d4 {[%clk 0:02:50]} 10. Na4 {[%clk 0:03:00]}  e5 {[%clk 0:02:41]} 11. e3 {[%clk 0:02:56]}  Re8 {[%clk 0:02:24]} 12. exd4 {[%clk 0:02:45]}  exd4 {[%clk 0:02:15]} 13. Nc5 {[%clk 0:02:38]}  Qa5 {[%clk 0:02:11]} 14. Bxd4 {[%clk 0:02:27]}  Qd8 {[%clk 0:01:33]} 15. Bc3 {[%clk 0:02:22]}  Nfd7 {[%clk 0:01:10]} 16. Bxg7 {[%clk 0:02:09]}  Kxg7 {[%clk 0:01:10]} 17. Na4 {[%clk 0:02:09]}  Ne5 {[%clk 0:01:05]} 18. Bg2 {[%clk 0:02:10]}  Nd3 {[%clk 0:01:05]} 19. Qc2 {[%clk 0:02:07]}  Qd4 {[%clk 0:00:59]} 20. Qc3 {[%clk 0:02:01]}  Rd8 {[%clk 0:00:59]} 21. Be4 {[%clk 0:01:45]}  Na6 {[%clk 0:00:45]} 22. Rad1 {[%clk 0:01:40]}  Ndc5 {[%clk 0:00:29]} 23. Nxc5 {[%clk 0:01:36]}  Nxc5 {[%clk 0:00:28]} 24. Bc2 {[%clk 0:01:32]}  a5 {[%clk 0:00:24]} 25. Rfe1 {[%clk 0:01:31]}  Rd7 {[%clk 0:00:24]} 26. a3 {[%clk 0:01:27]}  Rad8 {[%clk 0:00:20]} 27. b4 {[%clk 0:01:25]}  axb4 {[%clk 0:00:20]} 28. axb4 {[%clk 0:01:26]}  Na6 {[%clk 0:00:18]} 29. Rb1 {[%clk 0:01:12]}  c5 {[%clk 0:00:12]} 30. bxc5 {[%clk 0:01:11]}  Nxc5 {[%clk 0:00:12]} 31. Rb5 {[%clk 0:01:09]}  Qxc3 {[%clk 0:00:12]} 32. dxc3 {[%clk 0:01:09]}  Rc7 {[%clk 0:00:13]} 33. Re2 {[%clk 0:00:59]}  Rd6 {[%clk 0:00:10]} 34. Kg2 {[%clk 0:00:59]}  Rdc6 {[%clk 0:00:10]} 35. Re1 {[%clk 0:00:53]}  b6 {[%clk 0:00:11]} 36. Reb1 {[%clk 0:00:53]}  Ne6 {[%clk 0:00:10]} 37. Bd3 {[%clk 0:00:50]}  Nc5 {[%clk 0:00:09]} 38. Be2 {[%clk 0:00:49]}  Na4 {[%clk 0:00:09]} 39. R1b3 {[%clk 0:00:36]}  Nc5 {[%clk 0:00:08]} 40. Rb1 {[%clk 0:00:35]}  Re7 {[%clk 0:00:08]} 41. Bf3 {[%clk 0:00:35]}  Rd6 {[%clk 0:00:04]} 42. Rxb6 {[%clk 0:00:33]}  Rd2 {[%clk 0:00:05]} 43. R1b2 {[%clk 0:00:32]}  Rd3 {[%clk 0:00:04]} 44. Bd5 {[%clk 0:00:19]}  Rxc3 {[%clk 0:00:02]} 45. Rc6 {[%clk 0:00:18]} 1-0